bitfinex-derivatives/quotes_ETHF0:USTF0_20241024
["timestamp","ask_amount","ask_price","bid_price","bid_amount"]
[1729782641828,0.39577,2528.7,2528.6,0.39575]
[1729782642028,0.415,2528.8,2528.2,3.2078]
[1729782642229,0.39581,2528.3,2528.2,0.39583]
[1729782643033,0.39581,2528.3,2528.0,5.21901254]
[1729782643034,0.39585,2528.2,2528.1,0.39583]
[1729782643231,0.39585,2528.2,2528.1,0.12378051]
[1729782643426,0.39585,2528.2,2527.9,0.4454]
[1729782643427,0.4339,2528.3,2527.9,0.4454]
[1729782643627,1.42345,2528.3,2528.0,0.51963593]
[1729782643929,1.42345,2528.3,2527.8,8.00081254]
[1729782643930,0.39588,2527.9,2527.8,8.00081254]
[1729782644122,0.39588,2527.9,2527.8,3.33159272]
[1729782644329,0.39588,2527.9,2527.8,3.33159943]
[1729782645031,0.39588,2527.9,2527.4,10.3424]
[1729782645032,0.39597,2527.3,2526.8,0.39604]
[1729782645233,0.432,2527.2,2526.9,2.35874907]
[1729782645428,0.432,2527.2,2526.5,1.03336857]
[1729782645627,0.432,2527.2,2526.6,0.19816584]
[1729782645628,0.39608,2526.7,2526.6,0.19816584]
[1729782645833,0.3961,2526.5,2526.3,1.03336857]
[1729782646027,3.2078,2527.0,2526.4,0.19818632]
[1729782646226,0.39608,2526.7,2526.4,3.48511254]
[1729782646420,3.2078,2527.0,2526.4,3.48511254]
[1729782646627,0.39609,2526.6,2526.4,3.08901254]
[1729782646932,0.39606,2526.8,2526.4,3.08901254]
[1729782647135,3.2078,2527.0,2526.4,3.08901254]
[1729782647329,0.39609,2526.6,2526.4,3.48511254]
[1729782647638,0.39607,2526.7,2526.5,0.39609]
[1729782647839,0.39607,2526.7,2526.4,3.08901254]
[1729782647840,0.39609,2526.6,2526.4,3.48511254]
[1729782648032,0.39603,2526.9,2526.5,0.39609]
[1729782648233,0.39607,2526.7,2526.5,0.39609]
[1729782648441,3.618,2527.0,2526.6,3.08901254]
[1729782648645,0.39605,2526.8,2526.7,0.39605]
[1729782648838,0.39604,2526.9,2526.7,0.39605]
[1729782649037,0.39606,2526.8,2526.6,3.48508254]
[1729782649237,3.618,2527.0,2526.6,3.08901254]
[1729782649444,0.39605,2526.9,2526.6,3.08901254]
[1729782649641,0.39605,2526.9,2526.8,0.39605]
[1729782650145,0.39601,2527.1,2526.8,7.04661254]
[1729782650442,0.39598,2527.3,2527.2,0.39599]
[1729782651350,3.6148,2527.6,2527.0,3.08901254]
[1729782651554,3.6148,2527.6,2526.9,0.854]
[1729782651555,0.39597,2527.4,2527.3,3.48498254]
[1729782651757,0.39597,2527.4,2527.3,3.08901254]
[1729782652053,0.39596,2527.4,2527.3,3.48497254]
[1729782652751,3.6148,2527.6,2527.3,3.08901254]
[1729782652951,3.2078,2527.6,2527.5,0.39594]
[1729782653153,0.4102,2527.8,2527.4,3.08901254]
[1729782653357,0.39588,2527.9,2527.8,0.39589]
[1729782654148,0.3959,2527.8,2527.7,0.3959]
[1729782654358,3.6148,2528.0,2527.8,0.39588]
[1729782654660,3.2078,2528.0,2527.9,0.39588]
[1729782655551,0.39584,2528.2,2528.1,0.39585]
[1729782657054,3.6386,2528.4,2528.0,3.08901254]
[1729782657251,3.6386,2528.4,2528.2,0.39582]
[1729782657252,0.39582,2528.3,2528.2,0.39582]
[1729782657553,3.6386,2528.4,2528.0,3.08901254]
[1729782657752,4.62812,2528.4,2527.9,1.702]
[1729782657951,4.62812,2528.4,2527.8,6.69270254]
[1729782657952,0.39588,2527.9,2527.8,6.69270254]
[1729782658146,0.39588,2527.9,2527.8,3.60369]
[1729782658346,0.39588,2527.9,2527.8,7.55969]
[1729782658558,4.62812,2528.4,2527.9,0.39586]
[1729782658559,0.39587,2528.0,2527.9,0.39586]
[1729782658967,0.39588,2527.9,2527.8,0.39588]
[1729782659257,0.39586,2528.1,2528.0,0.39586]
[1729782660256,3.6386,2528.4,2527.8,6.29681254]
[1729782660955,0.39586,2528.1,2528.0,0.39586]
[1729782661353,3.6386,2528.4,2528.1,0.39584]
[1729782661354,0.39584,2528.2,2528.1,0.39584]
[1729782661657,0.39583,2528.2,2528.1,0.39585]
[1729782662251,3.6386,2528.4,2528.2,0.39582]
[1729782662252,0.39582,2528.3,2528.2,0.39582]
[1729782662654,3.6386,2528.4,2528.0,3.08901254]
[1729782662655,4.03442,2528.4,2528.3,0.39581]
[1729782662851,4.03442,2528.4,2528.2,0.39582]
[1729782662852,0.39583,2528.3,2528.2,0.39582]
[1729782663254,0.39583,2528.3,2527.8,4.19753]
[1729782663255,3.6386,2528.4,2527.8,6.29681254]
[1729782663457,0.39584,2528.2,2528.1,0.39584]
[1729782663965,0.39587,2528.0,2527.9,0.39588]
[1729782664462,0.98958,2528.3,2528.2,0.39582]
[1729782664463,0.39583,2528.3,2528.2,0.39582]
[1729782666468,3.6386,2528.4,2527.8,8.98854254]
[1729782666657,3.6386,2528.4,2527.9,0.39586]
[1729782666658,0.39587,2528.0,2527.9,0.39586]
[1729782666854,0.39586,2528.1,2528.0,0.39584]
[1729782667258,0.39584,2528.2,2528.1,0.39583]
[1729782669757,0.39585,2528.1,2528.0,3.48486254]
[1729782669960,0.39583,2528.3,2528.2,0.39582]
[1729782670369,3.6386,2528.4,2528.3,0.39581]
[1729782670559,4.0344,2528.4,2528.3,0.39581]
[1729782670762,3.6386,2528.4,2528.3,0.39581]
[1729782671057,3.2078,2528.4,2528.3,0.39581]
[1729782671254,0.39576,2528.7,2528.3,4.94473]
[1729782671460,0.39577,2528.6,2528.5,3.48478254]
[1729782671870,0.39578,2528.5,2528.4,0.39578]
[1729782672065,0.39578,2528.5,2528.3,3.08901254]
[1729782672066,0.39581,2528.4,2528.3,0.39581]
[1729782672266,0.39578,2528.6,2528.5,0.39577]
[1729782672861,0.443,2528.9,2528.3,3.2078]
[1729782672862,0.98939,2528.7,2528.3,3.2078]
[1729782673062,0.3958,2528.5,2528.4,0.39579]
[1729782673261,4.19719,2528.7,2528.2,1.701]
[1729782673262,3.2078,2528.7,2528.3,6.29681254]
[1729782673562,3.2078,2528.7,2528.5,3.48478254]
[1729782673765,3.6435,2529.0,2528.6,3.60357]
[1729782673964,3.60347,2529.3,2529.2,0.39567]
[1729782674967,3.2078,2529.3,2529.2,0.39567]
[1729782675368,3.60346,2529.3,2529.2,0.39567]
[1729782675768,3.2078,2529.3,2529.2,0.39567]
[1729782677569,3.2078,2529.3,2529.2,4.34927]
[1729782677763,3.2078,2529.6,2529.5,0.39563]
[1729782678168,3.2078,2529.6,2529.5,4.34923]
[1729782678567,3.2078,2529.9,2529.5,4.34923]
[1729782678770,3.60338,2529.9,2529.8,0.39557]
[1729782679671,0.39558,2529.8,2529.7,3.48460254]
[1729782679977,3.2078,2529.9,2529.6,0.39561]
[1729782680177,0.3956,2529.7,2529.6,0.39561]
[1729782680471,0.39561,2529.6,2529.5,3.48462254]
[1729782680878,3.2078,2529.9,2529.5,3.08901254]
[1729782681171,0.39561,2529.7,2529.6,0.3956]
[1729782681572,0.3956,2529.7,2529.6,1.701]
[1729782682073,0.39563,2529.5,2529.4,0.39564]
[1729782682276,0.39563,2529.5,2529.4,2.09664]
[1729782682464,0.83842,2529.6,2529.5,0.39563]
[1729782682668,0.39563,2529.5,2529.4,2.09664]
[1729782683173,0.4428,2529.6,2529.4,1.701]
[1729782683381,0.4428,2529.6,2529.3,3.08901254]
[1729782683678,0.39564,2529.5,2529.4,2.09364]
[1729782683880,0.39564,2529.4,2529.3,5.18266254]
[1729782684180,0.81604,2529.5,2529.4,0.39564]
[1729782688976,0.4204,2529.5,2529.4,0.39564]
[1729782689176,0.83842,2529.6,2529.5,0.39563]
[1729782689380,0.83842,2529.6,2529.5,3.48464254]
[1729782689578,0.83842,2529.6,2529.5,3.08901254]
[1729782689774,0.83842,2529.6,2529.5,3.48464254]
[1729782690780,0.4428,2529.6,2529.5,3.48464254]
[1729782690978,0.3956,2529.7,2529.5,3.08901254]
[1729782691188,0.4094,2529.8,2529.5,3.48462254]
[1729782691381,0.39561,2529.7,2529.6,0.3956]
[1729782693476,0.39561,2529.6,2529.5,3.48462254]
[1729782693682,0.4094,2529.8,2529.5,3.08901254]
[1729782693883,0.39561,2529.7,2529.6,0.3956]
[1729782694592,0.4094,2529.8,2529.5,3.08901254]
[1729782694783,0.80499,2529.8,2529.7,0.3956]
[1729782697485,0.39561,2529.7,2529.6,0.3956]
[1729782700584,0.4094,2529.8,2529.7,0.3956]
[1729782700585,0.80499,2529.8,2529.7,0.3956]
[1729782700782,0.80499,2529.8,2529.7,3.48461254]
[1729782700978,3.2078,2530.2,2529.7,10.13082508]
[1729782701182,1.97722,2530.7,2530.3,0.3955]
[1729782701183,0.8364,2530.4,2530.3,0.3955]
[1729782701387,0.8364,2530.4,2530.3,3.48451254]
[1729782701793,0.98851,2531.0,2530.3,3.08901254]
[1729782701979,0.98851,2531.0,2530.6,0.39544]
[1729782701980,0.39545,2530.7,2530.6,0.39544]
[1729782702186,0.39547,2530.6,2530.5,0.39546]
[1729782702382,0.39545,2530.7,2530.6,3.48446254]
[1729782702990,0.82323,2530.8,2530.7,0.39544]
[1729782703294,0.4278,2530.8,2530.7,0.39544]
[1729782703488,0.80402,2530.9,2530.8,0.39542]
[1729782703687,0.80402,2530.9,2530.8,3.48443254]
[1729782704096,0.4086,2530.9,2530.8,3.48443254]
[1729782704405,0.4246,2531.0,2530.9,0.39541]
[1729782704589,0.4246,2531.0,2530.9,3.48442254]
[1729782705085,0.4117,2531.3,2531.2,0.39536]
[1729782705301,0.4117,2531.3,2531.2,3.48437254]
[1729782706484,0.4209,2531.4,2531.2,3.08901254]
[1729782706792,0.81623,2531.4,2531.3,0.39535]
[1729782707309,0.39535,2531.3,2531.2,3.48437254]
[1729782707789,0.81624,2531.4,2531.3,0.39535]
[1729782707986,0.39535,2531.3,2531.2,3.48437254]
[1729782708182,0.4209,2531.4,2531.0,3.08901254]
[1729782708387,0.39538,2531.1,2531.0,3.08901254]
[1729782709289,0.39538,2531.1,2531.0,3.48440254]
[1729782709691,0.39538,2531.1,2531.0,3.08901254]
[1729782710785,0.81387,2531.2,2531.1,0.39538]
[1729782710998,0.39535,2531.3,2531.2,0.39535]
[1729782711296,0.39535,2531.3,2531.2,3.48436254]
[1729782711496,0.4209,2531.4,2531.3,0.39535]
[1729782711497,0.81623,2531.4,2531.3,0.39535]
[1729782712195,0.4209,2531.4,2531.2,3.08901254]
[1729782712399,0.81624,2531.4,2531.3,0.39535]
[1729782712802,0.81624,2531.4,2531.2,3.48436254]
[1729782712803,0.39535,2531.3,2531.2,3.48436254]
[1729782713399,0.81624,2531.4,2531.3,0.39535]
[1729782713596,0.81624,2531.4,2531.2,3.08901254]
[1729782713597,0.4209,2531.4,2531.2,3.08901254]
[1729782713797,0.39535,2531.3,2531.2,3.48436254]
[1729782713997,0.4209,2531.4,2531.2,3.08901254]
[1729782714297,40.8,2532.0,2531.3,3.2078]
[1729782714497,0.39528,2531.8,2531.7,0.39528]
[1729782714692,0.4219,2531.9,2531.4,0.98833]
[1729782714898,0.81716,2531.9,2531.8,0.39527]
[1729782715204,0.39529,2531.7,2531.6,0.39528]
[1729782715502,0.39527,2531.8,2531.7,0.39527]
[1729782715802,0.81716,2531.9,2531.8,0.39527]
[1729782716196,0.81716,2531.9,2531.8,2.08827]
[1729782717197,0.81716,2531.9,2531.8,5.17728254]
[1729782717395,0.81716,2531.9,2531.8,4.78201254]
[1729782717595,0.81716,2531.9,2531.8,5.17728254]
[1729782718196,0.4219,2531.9,2531.8,5.17728254]
[1729782718400,0.81715,2531.9,2531.8,5.17728254]
[1729782718802,0.4219,2531.9,2531.8,5.17728254]
[1729782719109,0.81643,2532.1,2532.0,0.39524]
[1729782719402,3.2078,2532.3,2532.0,3.08901254]
[1729782719605,3.60299,2532.3,2532.2,3.08901254]
[1729782720105,3.60299,2532.3,2532.1,3.08901254]
[1729782720106,0.3952,2532.2,2532.1,3.08901254]
[1729782720293,0.3952,2532.2,2531.9,3.08901254]
[1729782720294,0.39524,2532.0,2531.9,3.08901254]
[1729782720495,0.39525,2531.9,2531.8,1.693]
[1729782720698,0.39527,2531.8,2531.7,3.48428254]
[1729782720905,0.39527,2531.8,2531.7,5.17728254]
[1729782721898,0.4461,2531.9,2531.7,3.08901254]
[1729782722103,0.4461,2531.9,2531.8,0.39527]
[1729782722410,3.60304,2532.0,2531.9,0.39525]
[1729782722706,3.60304,2532.0,2531.9,3.48426254]
[1729782723306,3.60304,2532.0,2531.9,3.08901254]
[1729782723505,0.39527,2531.8,2531.7,3.08901254]
[1729782724411,0.39527,2531.8,2531.7,3.48429254]
[1729782725409,3.2078,2532.0,2531.6,1.692]
[1729782725710,1.21218,2531.7,2531.6,1.692]
[1729782725912,1.21218,2531.7,2531.6,2.0873]
[1729782726213,0.8169,2531.7,2531.6,2.0873]
[1729782726407,1.21222,2531.7,2531.6,2.0873]
[1729782726609,1.21222,2531.7,2531.6,2.08734]
[1729782727115,1.21222,2531.7,2531.6,1.692]
[1729782727318,0.39534,2531.6,2531.5,4.78101254]
[1729782727610,0.39534,2531.6,2531.1,4.78101254]
[1729782727611,0.98839,2531.5,2531.1,4.78101254]
[1729782727810,0.3954,2531.2,2531.1,4.78101254]
[1729782728708,0.39543,2531.0,2530.9,3.08901254]
[1729782728907,4.1964,2531.0,2530.7,3.08901254]
[1729782729108,0.39546,2530.8,2530.7,3.08901254]
[1729782729512,0.39546,2530.8,2530.7,3.48449254]
[1729782729807,0.39546,2530.8,2530.7,3.08901254]
[1729782730916,0.39546,2530.8,2530.7,3.48449254]
[1729782731115,0.39546,2530.8,2530.7,3.08901254]
[1729782731320,0.39546,2530.8,2530.7,3.48449254]
[1729782731611,4.1964,2531.0,2530.8,0.39545]
[1729782731612,0.39546,2530.9,2530.8,0.39545]
[1729782731814,0.8624,2531.1,2530.9,0.39545]
[1729782732008,0.39543,2531.0,2530.9,0.39545]
[1729782732213,0.8624,2531.1,2530.7,4.19649]
[1729782732414,0.4329,2531.1,2531.0,0.39543]
[1729782732718,3.2078,2531.3,2531.2,0.3954]
[1729782733015,3.60318,2531.3,2531.2,3.48441254]
[1729782733519,0.39538,2531.3,2531.2,3.48441254]
[1729782734917,0.39538,2531.3,2531.2,3.08901254]
[1729782736012,0.9884,2531.5,2531.0,3.48443254]
[1729782736314,0.9884,2531.5,2531.1,2.0884]
[1729782736315,0.39542,2531.2,2531.1,2.0884]
[1729782737812,0.39539,2531.3,2531.2,0.39538]
[1729782738018,0.39539,2531.3,2531.2,3.48439254]
[1729782738619,0.39539,2531.3,2531.2,3.08901254]
[1729782739011,0.39548,2530.7,2530.6,3.08901254]
[1729782739212,0.8461,2531.2,2530.6,3.08901254]
[1729782739414,3.60323,2531.0,2530.9,3.48446254]
[1729782739621,0.39543,2531.0,2530.9,3.48446254]
[1729782739919,0.39543,2531.0,2530.9,3.08901254]
[1729782740121,0.39543,2531.0,2530.5,1.693]
[1729782740122,0.39548,2530.7,2530.6,4.78201254]
[1729782740515,0.39547,2530.8,2530.7,0.39545]
[1729782740715,0.39546,2530.8,2530.7,0.39545]
[1729782741222,0.39548,2530.7,2530.6,3.48450254]
[1729782741527,0.39548,2530.7,2530.6,3.08901254]
[1729782742017,3.2078,2531.0,2530.4,7.98981254]
[1729782742220,0.39551,2530.5,2530.4,8.38533254]
[1729782742522,0.39551,2530.5,2530.4,6.69234254]
[1729782744313,1.276,2530.6,2530.5,0.39551]
[1729782744514,0.8805,2530.6,2530.5,0.39551]
[1729782744720,0.4361,2530.6,2530.5,0.39551]
[1729782744915,0.39547,2530.8,2530.7,0.39548]
[1729782745322,0.4187,2530.9,2530.8,0.39546]
[1729782745517,0.81415,2530.9,2530.8,0.39546]
[1729782746318,0.4187,2530.9,2530.8,3.48447254]
[1729782746524,3.2078,2531.0,2530.9,0.39545]
[1729782747221,3.60323,2531.0,2530.9,0.39545]
[1729782747412,3.60323,2531.0,2530.9,2.08545]
[1729782747613,3.60323,2531.0,2530.9,0.39545]
[1729782749317,3.2078,2531.0,2530.9,0.39545]
[1729782750110,3.60323,2531.0,2530.9,0.39545]
[1729782751120,0.39546,2530.9,2530.8,0.39546]
[1729782751911,0.39546,2530.8,2530.7,3.48447254]
[1729782754119,0.39546,2530.9,2530.8,0.39545]
[1729782754314,3.2078,2531.0,2530.8,0.39545]
[1729782754518,0.39545,2530.9,2530.8,0.39545]
[1729782755321,0.39545,2530.9,2530.5,0.3955]
[1729782755322,0.39552,2530.6,2530.5,0.3955]
[1729782755525,4.93983,2530.9,2530.7,0.39547]
[1729782755526,0.39548,2530.8,2530.7,0.39547]
[1729782755715,0.39548,2530.8,2530.5,1.69]
[1729782755716,0.98863,2530.9,2530.5,1.69]
[1729782755915,0.84089,2530.7,2530.6,0.39548]
[1729782757226,0.4454,2530.7,2530.6,3.48449254]
[1729782757421,0.84088,2530.7,2530.6,3.48449254]
[1729782758118,0.4454,2530.7,2530.6,3.48449254]
[1729782758320,3.60324,2531.0,2530.6,8.02892254]
[1729782758523,3.60324,2531.0,2530.9,0.39545]
[1729782759425,3.2078,2531.0,2530.9,0.39545]
[1729782759620,3.2078,2531.0,2530.9,4.34665]
[1729782759826,3.2078,2531.0,2530.9,4.77125]
[1729782761327,0.81748,2531.4,2530.9,4.3758]
[1729782761532,3.2078,2531.5,2531.4,0.39537]
[1729782761919,3.60315,2531.5,2531.4,0.39537]
[1729782762527,3.2078,2531.5,2531.4,0.39537]
[1729782762929,3.2078,2531.5,2531.4,4.34577]
[1729782763428,0.4459,2531.9,2531.4,3.9504]
[1729782763635,0.8412,2531.9,2531.8,0.39531]
[1729782763931,0.4459,2531.9,2531.8,0.39531]
[1729782764733,0.84119,2531.9,2531.8,0.39531]
[1729782765927,0.4459,2531.9,2531.4,0.4066]
[1729782766129,0.39535,2531.6,2531.5,1.69]
[1729782766432,0.39535,2531.6,2531.5,2.08535]
[1729782766828,0.39535,2531.6,2531.5,1.69]
[1729782767524,0.3954,2531.2,2531.1,3.48441254]
[1729782767730,0.3954,2531.2,2531.1,5.17441254]
[1729782768430,0.4072,2531.4,2531.1,5.17441254]
[1729782768431,0.39539,2531.3,2531.2,0.39538]
[1729782769840,0.80258,2531.4,2531.3,0.39538]
[1729782770232,0.4072,2531.4,2531.3,0.39538]
[1729782770826,0.80257,2531.4,2531.3,0.39538]
[1729782773736,0.80257,2531.4,2531.1,4.77601254]
[1729782773939,0.3954,2531.2,2531.1,5.17141254]
[1729782774138,0.3954,2531.2,2531.1,5.29505215]
[1729782774436,0.3954,2531.2,2531.1,5.17141254]
[1729782775146,4.93891,2531.2,2530.8,3.2078]
[1729782775344,0.39546,2530.9,2530.8,0.39544]
[1729782775543,0.39546,2530.9,2530.8,0.51909416]
[1729782776031,0.39546,2530.9,2530.8,0.39544]
[1729782776235,0.39546,2530.9,2530.8,0.12365657]
[1729782776236,0.4026,2530.9,2530.8,0.12365657]
[1729782776439,0.4026,2530.9,2530.8,7.43567254]
[1729782776639,3.60323,2531.1,2530.8,7.43567254]
[1729782776640,3.2078,2531.1,2531.0,0.39543]
[1729782776837,0.39544,2531.0,2530.9,0.39543]
[1729782777541,0.39546,2530.9,2530.8,0.39545]
[1729782777740,0.4328,2530.9,2530.8,0.39545]
[1729782778138,0.4328,2530.9,2530.8,0.51910666]
[1729782778345,0.82825,2530.9,2530.8,0.39545]
[1729782778646,0.82825,2530.9,2530.8,0.5191074]
[1729782780249,0.82825,2530.9,2530.8,0.51910316]
[1729782780444,3.2078,2531.1,2530.8,7.1638657]
[1729782780744,0.4026,2531.2,2531.0,3.48444254]
[1729782780947,3.2078,2531.2,2531.1,0.39542]
[1729782781441,0.79859,2531.3,2531.2,0.3954]
[1729782781644,0.4032,2531.3,2531.2,0.3954]
[1729782781845,0.79858,2531.3,2531.2,0.3954]
[1729782782346,0.4377,2531.5,2531.4,0.39537]
[1729782782541,0.83306,2531.5,2531.4,0.39537]
[1729782782842,3.2078,2531.6,2531.5,0.39535]
[1729782783057,3.60314,2531.6,2531.5,0.39535]
[1729782783356,3.2078,2531.6,2531.5,3.48436254]
[1729782783648,0.39531,2531.8,2531.5,3.48436254]
[1729782783649,0.39531,2531.8,2531.7,0.39532]
[1729782783847,3.2078,2532.0,2531.5,4.77601254]
[1729782784144,3.2078,2532.0,2531.6,2.08232]
[1729782784145,0.39534,2531.7,2531.6,2.08232]
[1729782784350,3.2078,2532.0,2531.6,1.687]
[1729782784542,0.39532,2531.8,2531.7,0.3953]
[1729782784943,3.9496,2531.8,2531.6,1.687]
[1729782785141,0.39532,2531.7,2531.6,2.08233]
[1729782785849,0.39532,2531.7,2531.6,0.39533]
[1729782786153,0.39532,2531.8,2531.7,0.3953]
[1729782788237,0.39532,2531.8,2531.7,3.48431254]
[1729782788844,0.39532,2531.8,2531.7,3.08901254]
[1729782789551,0.39532,2531.8,2531.7,3.48433254]
[1729782790248,3.2078,2532.0,2531.9,0.39529]
[1729782790446,3.2078,2532.0,2531.9,3.48430254]
[1729782790844,0.8761,2532.1,2531.9,3.08901254]
[1729782791050,0.8761,2532.1,2531.7,3.08901254]
[1729782791245,0.8761,2532.1,2531.8,0.39529]
[1729782791246,0.3953,2531.9,2531.8,0.39529]
[1729782791844,0.8761,2532.1,2531.6,3.08901254]
[1729782792045,0.39532,2531.7,2531.6,4.77601254]
[1729782792447,0.39532,2531.7,2531.6,3.08901254]
[1729782793054,0.39532,2531.7,2531.6,3.48435254]
[1729782793750,0.39535,2531.6,2531.5,0.39534]
[1729782794053,1.25125,2531.6,2531.5,0.39534]
[1729782794448,0.39535,2531.5,2531.4,2.08236]
[1729782795450,1.25124,2531.6,2531.5,0.39535]
[1729782795649,1.25124,2531.6,2531.4,1.687]
[1729782795650,0.8559,2531.6,2531.4,1.687]
[1729782795850,0.8559,2531.6,2531.5,3.08901254]
[1729782796057,0.39533,2531.8,2531.7,0.39531]
[1729782796451,0.82949,2531.9,2531.8,0.39531]
[1729782796653,0.39531,2531.8,2531.7,3.48432254]
[1729782796858,0.8295,2531.9,2531.8,0.39531]
[1729782797953,0.3953,2531.9,2531.8,0.39531]
[1729782798363,3.6208,2532.0,2531.7,3.08901254]
[1729782798659,3.2078,2532.0,2531.9,0.39529]
[1729782798861,3.2078,2532.0,2531.9,3.48430254]
[1729782799054,3.60308,2532.0,2531.9,3.48430254]
[1729782799252,3.2078,2532.0,2531.9,3.48430254]
[1729782799560,3.2078,2532.0,2531.9,7.43390254]
[1729782799857,3.2078,2532.0,2531.9,7.87860254]
[1729782800653,0.39525,2532.2,2532.1,0.39526]
[1729782800957,3.6167,2532.5,2531.9,3.53371254]
[1729782801159,0.39523,2532.4,2532.3,0.39522]
[1729782801751,3.6167,2532.5,2532.3,3.08901254]
[1729782801963,4.01191,2532.5,2532.4,0.39521]
[1729782802163,0.39521,2532.4,2532.3,3.48423254]
[1729782802469,3.2078,2532.5,2532.4,0.39521]
[1729782802766,3.603,2532.5,2532.4,0.39521]
[1729782803550,3.603,2532.5,2532.3,3.48424254]
[1729782803551,0.39521,2532.4,2532.3,3.48424254]
[1729782803751,0.80031,2532.4,2532.3,3.08901254]
[1729782804262,0.80031,2532.4,2532.3,3.48424254]
[1729782804960,3.626,2532.5,2532.3,3.08901254]
[1729782805260,3.2078,2532.5,2532.4,0.39521]
[1729782805763,0.3952,2532.5,2532.4,0.39521]
[1729782806675,0.39521,2532.4,2532.3,1.683]
[1729782808769,0.39524,2532.2,2532.1,3.08901254]
[1729782809264,0.39528,2532.0,2531.9,3.48429254]
[1729782809565,0.39528,2532.0,2531.9,5.16729254]
[1729782809757,1.41424,2532.4,2532.0,0.39526]
[1729782809758,0.39527,2532.1,2532.0,0.39526]
[1729782813463,0.39528,2532.0,2531.9,5.16730254]
[1729782813668,0.83388,2532.0,2531.9,4.77201254]
[1729782813862,0.4386,2532.0,2531.8,1.683]
[1729782814068,0.4386,2532.0,2531.8,2.07831]
[1729782814069,0.39529,2531.9,2531.8,2.07831]
[1729782814263,0.4386,2532.0,2531.7,3.08901254]
[1729782814473,0.39531,2531.8,2531.7,5.16732254]
[1729782816170,0.3953,2531.9,2531.8,0.39529]
[1729782816468,0.83388,2532.0,2531.9,0.39529]
[1729782816664,0.83388,2532.0,2531.9,3.48430254]
[1729782816866,3.6249,2532.2,2531.9,3.08901254]
[1729782816867,0.39527,2532.1,2531.9,3.08901254]
[1729782817172,0.39527,2532.1,2532.0,0.39528]
[1729782818463,3.6249,2532.2,2531.9,3.08901254]
[1729782818665,4.02016,2532.2,2532.1,0.39526]
[1729782819070,0.81234,2532.2,2532.1,3.48427254]
[1729782819266,0.4171,2532.2,2532.1,3.48427254]
[1729782820976,0.81234,2532.2,2532.1,3.48427254]
[1729782821476,0.4171,2532.2,2532.1,3.48427254]
[1729782822573,0.81234,2532.2,2532.1,3.48427254]
[1729782822773,0.4171,2532.2,2532.1,3.48427254]
[1729782823077,0.83493,2532.3,2532.2,0.39524]
[1729782829780,4.19582,2532.5,2532.4,0.39521]
[1729782829781,3.603,2532.5,2532.4,0.39521]
[1729782829981,3.2078,2532.5,2532.4,0.5187932]
[1729782830173,0.4142,2532.8,2532.7,0.39517]
[1729782830367,0.4466,2532.9,2532.8,0.39515]
[1729782830575,0.39511,2533.1,2533.0,0.3951]
[1729782833679,0.4466,2533.2,2532.8,3.48414254]
[1729782833680,0.39515,2532.9,2532.8,3.48414254]
[1729782834476,0.4466,2533.2,2532.8,3.08901254]
[1729782834680,0.8417,2533.2,2533.1,0.3951]
[1729782837279,0.3951,2533.1,2533.0,3.48412254]
[1729782837578,0.39513,2533.0,2532.9,0.39512]
[1729782837778,0.39513,2533.0,2532.9,2.07412]
[1729782838180,0.39503,2533.6,2533.5,0.39503]
[1729782838381,0.39503,2533.6,2533.1,0.98777]
[1729782838382,0.403,2533.8,2533.4,3.08901254]
[1729782838688,0.98757,2533.6,2533.1,4.76801254]
[1729782838883,3.2078,2533.7,2533.3,3.08901254]
[1729782839183,0.39505,2533.5,2533.4,0.39505]
[1729782839782,3.2078,2533.7,2533.3,3.08901254]
[1729782839982,1.23766,2533.4,2533.3,3.48407254]
[1729782840284,1.23766,2533.4,2533.3,3.08901254]
[1729782840488,1.23766,2533.4,2533.1,3.48410254]
[1729782840489,4.7898,2533.4,2533.1,3.48410254]
[1729782840790,0.39509,2533.2,2533.1,3.48410254]
[1729782841590,0.83728,2533.3,2533.2,0.39509]
[1729782841981,0.39509,2533.2,2533.1,3.48410254]
[1729782843188,0.4422,2533.3,2533.2,0.39509]
[1729782843588,0.83727,2533.3,2533.2,0.39509]
[1729782845289,0.8426,2533.4,2533.1,3.08901254]
[1729782845488,0.8426,2533.4,2533.3,3.48408254]
[1729782846384,3.2078,2533.7,2533.3,3.48408254]
[1729782846588,3.2078,2534.0,2533.9,0.39498]
[1729782847185,1.3008,2534.1,2534.0,0.39496]
[1729782847385,3.2078,2534.4,2534.3,0.39492]
[1729782847592,3.2078,2534.4,2534.3,3.48393254]
[1729782848795,3.6027,2534.4,2534.3,3.48393254]
[1729782849097,3.2078,2534.4,2534.3,3.48393254]
[1729782849790,3.6027,2534.4,2534.3,1.679]
[1729782850385,3.6027,2534.4,2534.2,3.08901254]
[1729782850386,0.39492,2534.3,2534.2,3.08901254]
[1729782851384,0.39495,2534.1,2534.0,6.29681254]
[1729782851589,0.39495,2534.1,2534.0,3.08901254]
[1729782851785,0.39495,2534.1,2534.0,3.48397254]
[1729782852004,3.2078,2534.4,2534.0,3.08901254]
[1729782852191,3.2078,2534.4,2533.9,1.679]
[1729782852192,3.6027,2534.4,2534.3,3.08901254]
[1729782852391,0.39487,2534.7,2534.6,0.39486]
[1729782852590,0.39487,2534.7,2534.6,3.08901254]
[1729782852591,0.39485,2534.7,2534.6,3.08901254]
[1729782853396,0.39489,2534.5,2534.4,4.76801254]
[1729782853793,0.39489,2534.5,2534.2,3.48394254]
[1729782853794,0.39492,2534.3,2534.2,3.48394254]
[1729782854096,0.98733,2534.3,2534.0,4.76801254]
[1729782854398,0.39495,2534.1,2534.0,3.08901254]
[1729782855795,0.8228,2534.2,2534.0,3.08901254]
[1729782855995,0.8228,2534.2,2534.1,0.39495]
[1729782856594,0.4146,2534.2,2534.1,0.39495]